fUST/lending_fUST_20250206
["ID","MTS","AMOUNT","RATE_DAILY","PERIOD"]
[351744519,1738774239052,-500.0,0.0001505,2]
[351744521,1738774239062,-500.0,0.0001505,2]
[351744523,1738774239071,-1797.65,0.0001505,2]
[351744525,1738774239081,-500.0,0.0001505,2]
[351744527,1738774239091,-1605.57,0.0001505,2]
[351744529,1738774239100,-500.0,0.0001505,2]
[351744531,1738774239110,-1693.31,0.0001505,2]
[351744533,1738774239120,-848.5,0.0001505,2]
[351744535,1738774239130,-500.0,0.0001505,2]
[351744537,1738774239140,-1575.98,0.0001505,2]
[351744539,1738774239151,-500.0,0.0001505,2]
[351744541,1738774239160,-538.45,0.0001505,2]
[351744543,1738774239170,-685.2,0.0001505,2]
[351744544,1738774239180,-500.0,0.0001505,2]
[351744547,1738774239191,-1174.97,0.0001505,2]
[351744549,1738774239201,-1100.93,0.0001505,2]
[351744551,1738774239215,-2646.56,0.0001505,2]
[351744553,1738774239226,-500.0,0.0001505,2]
[351744555,1738774239236,-1010.65,0.0001505,2]
[351744557,1738774239245,-500.0,0.0001505,2]
[351744559,1738774239254,-417.94869087,0.0001505,2]
[351744561,1738774239264,-500.0,0.0001505,2]
[351744563,1738774239273,-500.0,0.0001505,2]
[351744565,1738774239283,-514.21875713,0.0001505,2]
[351744567,1738774239293,-1403.64,0.0001505,2]
[351744569,1738774239302,-500.0,0.0001505,2]
[351744571,1738774239312,-500.0,0.0001505,2]
[351744573,1738774239321,-500.0,0.0001505,2]
[351744575,1738774239330,-500.0,0.0001505,2]
[351744577,1738774239339,-500.0,0.0001505,2]
[351744579,1738774239349,-500.0,0.0001505,2]
[351744581,1738774239359,-500.0,0.0001505,2]
[351744583,1738774239368,-500.0,0.0001505,2]
[351744585,1738774239378,-2948.49,0.0001505,2]
[351744587,1738774239388,-1182.38,0.0001505,2]
[351744589,1738774239398,-838.79,0.0001505,2]
[351744592,1738774239408,-500.0,0.0001505,2]
[351744595,1738774239418,-1215.47,0.0001505,2]
[351744598,1738774239429,-3457.38,0.0001505,2]
[351744600,1738774239439,-751.11,0.0001505,2]
[351744602,1738774239449,-500.0,0.0001505,2]
[351744604,1738774239461,-1047.74,0.0001505,2]
[351744607,1738774239471,-500.0,0.0001505,2]
[351744609,1738774239481,-178.00689569,0.0001505,2]
[351744611,1738774239491,-500.0,0.0001505,2]
[351744613,1738774239500,-500.0,0.0001505,2]
[351744615,1738774239510,-500.0,0.0001505,2]
[351744617,1738774239520,-500.0,0.0001505,2]
[351744619,1738774239530,-1545.5,0.0001505,2]
[351744622,1738774239540,-687.68,0.0001505,2]
[351744625,1738774239549,-500.0,0.0001505,2]
[351744628,1738774239559,-692.17,0.0001505,2]
[351744631,1738774239569,-500.0,0.0001505,2]
[351744634,1738774239579,-8713.41,0.0001505,2]
[351744637,1738774239589,-500.0,0.0001505,2]
[351744640,1738774239598,-624.52,0.0001505,2]
[351744643,1738774239608,-500.0,0.0001505,2]
[351744646,1738774239619,-1602.73,0.0001505,2]
[351744649,1738774239628,-500.0,0.0001505,2]
[351744651,1738774239638,-500.0,0.0001505,2]
[351744653,1738774239648,-1474.86,0.0001505,2]
[351744655,1738774239658,-3116.34,0.0001505,2]
[351744657,1738774239668,-500.0,0.0001505,2]
[351744659,1738774239678,-500.0,0.0001505,2]
[351744661,1738774239689,-500.0,0.0001505,2]
[351744663,1738774239699,-1740.6,0.0001505,2]
[351744665,1738774239711,-500.0,0.0001505,2]
[351744667,1738774239720,-742.19,0.0001505,2]
[351744669,1738774239730,-1207.92,0.0001505,2]
[351744671,1738774239739,-500.0,0.0001505,2]
[351744673,1738774239749,-500.0,0.0001505,2]
[351744675,1738774239758,-1719.77,0.0001505,2]
[351744677,1738774239767,-41162.47,0.0001505,2]
[351744679,1738774239777,-558.47,0.0001505,2]
[351744681,1738774239787,-8228.7,0.0001505,2]
[351744683,1738774239797,-500.0,0.0001505,2]
[351744685,1738774239807,-1030.21,0.0001505,2]
[351744687,1738774239816,-5700.65,0.0001505,2]
[351744689,1738774239825,-500.0,0.0001505,2]
[351744691,1738774239835,-500.0,0.0001505,2]
[351744693,1738774239844,-500.0,0.0001505,2]
[351744695,1738774239854,-670.4,0.0001505,2]
[351744697,1738774239863,-669.88,0.0001505,2]
[351744699,1738774239873,-2871.55,0.0001505,2]
[351744701,1738774239883,-2659.05,0.0001505,2]
[351744703,1738774239893,-634.22,0.0001505,2]
[351744705,1738774239903,-500.0,0.0001505,2]
[351744707,1738774239912,-123029.57,0.0001505,2]
[351744709,1738774239921,-637.14,0.0001505,2]
[351744711,1738774239931,-500.0,0.0001505,2]
[351744713,1738774239941,-5140.36,0.0001505,2]
[351744715,1738774239950,-500.0,0.0001505,2]
[351744717,1738774239960,-500.0,0.0001505,2]
[351744719,1738774239971,-500.0,0.0001505,2]
[351744721,1738774239981,-500.0,0.0001505,2]
[351744723,1738774239991,-500.0,0.0001505,2]
[351744725,1738774240001,-3100.69,0.0001505,2]
[351744727,1738774240010,-500.0,0.0001505,2]
[351744729,1738774240022,-500.0,0.0001505,2]
[351744731,1738774240032,-326.52367571,0.0001505,2]
[351744733,1738774240042,-795.12,0.0001505,2]
[351744735,1738774240052,-500.0,0.0001505,2]
[351744737,1738774240063,-264.22260139,0.0001505,2]
[351744739,1738774240073,-500.0,0.0001505,2]
[351744741,1738774240082,-8349.74422137,0.00015051,2]
[351744743,1738774240092,-500.0,0.00015051,2]
[351744745,1738774240102,-459.21395355,0.00015051,2]
[351744747,1738774240112,-926.29,0.00015051,2]
[351744749,1738774240127,-926.29,0.00015051,2]
[351744751,1738774240136,-926.29,0.00015051,2]
[351744753,1738774240147,-926.29,0.00015051,2]
[351744755,1738774240157,-926.29,0.00015051,2]
[351744757,1738774240168,-926.29,0.00015051,2]
[351744759,1738774240178,-926.29,0.00015051,2]
[351744761,1738774240188,-926.29,0.00015051,2]
[351744763,1738774240198,-926.29,0.00015051,2]
[351744765,1738774240213,-926.29,0.00015051,2]
[351744767,1738774240225,-926.29,0.00015051,2]
[351744770,1738774240235,-35299.03,0.00015051,2]
[351744773,1738774240245,-2979.9,0.00015051,2]
[351744775,1738774240254,-500.0,0.00015051,2]
[351744777,1738774240264,-1001.10540955,0.00015052,2]
[351744779,1738774240274,-500.0,0.00015052,2]
[351744781,1738774240283,-500.0,0.00015052,2]
[351744783,1738774240294,-500.0,0.00015052,2]
[351744786,1738774240304,-500.0,0.00015052,2]
[351744788,1738774240313,-1247.97,0.00015052,2]
[351744790,1738774240324,-500.0,0.00015052,2]
[351744791,1738774240334,-678.83,0.00015052,2]
[351744794,1738774240343,-500.0,0.00015052,2]
[351744796,1738774240354,-702.43,0.00015052,2]
[351744798,1738774240363,-540.94,0.00015052,2]
[351744800,1738774240373,-500.0,0.00015052,2]
[351744802,1738774240383,-837.98,0.00015052,2]
[351744804,1738774240393,-500.0,0.00015052,2]
[351744806,1738774240403,-500.0,0.00015052,2]
[351744807,1738774240412,-509.39038919,0.00015052,2]
[351744808,1738774240421,-522.57205395,0.00015052,2]
[351744810,1738774240430,-522.31791912,0.00015052,2]
[351744812,1738774240440,-500.0,0.00015052,2]
[351744814,1738774240449,-500.0,0.00015052,2]
[351744816,1738774240460,-500.0,0.00015052,2]
[351744818,1738774240469,-500.0,0.00015052,2]
[351744820,1738774240479,-500.0,0.00015052,2]
[351744822,1738774240488,-508.79528538,0.00015052,2]
[351744824,1738774240498,-500.0,0.00015052,2]
[351744826,1738774240508,-382.63498747,0.00015052,2]
[351744828,1738774240517,-500.0,0.00015052,2]
[351744830,1738774240526,-500.0,0.00015052,2]
[351744832,1738774240536,-500.0,0.00015052,2]
[351744834,1738774240546,-500.0,0.00015052,2]
[351744836,1738774240555,-500.0,0.00015052,2]
[351744838,1738774240566,-500.0,0.00015052,2]
[351744840,1738774240576,-500.0,0.00015052,2]
[351744842,1738774240587,-500.0,0.00015052,2]
[351744844,1738774240596,-500.0,0.00015052,2]
[351744846,1738774240607,-500.0,0.00015052,2]
[351744848,1738774240616,-502.32749798,0.00015052,2]
[351744850,1738774240626,-500.0,0.00015052,2]
[351744852,1738774240635,-500.0,0.00015052,2]
[351744854,1738774240645,-500.0,0.00015052,2]
[351744856,1738774240655,-201.9818426,0.00015052,2]
[351744859,1738774240665,-500.0,0.00015052,2]
[351744861,1738774240675,-500.0,0.00015052,2]
[351744863,1738774240685,-500.0,0.00015052,2]
[351744865,1738774240696,-500.0,0.00015052,2]
[351744867,1738774240706,-500.0,0.00015052,2]
[351744869,1738774240719,-232.44990168,0.00015052,2]
[351744871,1738774240729,-500.0,0.00015052,2]
[351744873,1738774240739,-681.38,0.00015052,2]
[351744875,1738774240749,-501.71599731,0.00015052,2]
[351744877,1738774240759,-500.0,0.00015052,2]
[351744879,1738774240768,-701.2,0.00015052,2]
[351744881,1738774240779,-506.24548495,0.00015052,2]
[351744883,1738774240789,-502.3482059,0.00015052,2]
[351744885,1738774240798,-500.0,0.00015052,2]
[351744887,1738774240808,-500.0,0.00015052,2]
[351744889,1738774240818,-328.23527834,0.00015052,2]
[351744891,1738774240827,-500.0,0.00015052,2]
[351744893,1738774240837,-320.62455143,0.00015052,2]
[351744895,1738774240847,-551.44,0.00015052,2]
[351744897,1738774240856,-500.0,0.00015052,2]
[351744899,1738774240872,-500.0,0.00015052,2]
[351744901,1738774240889,-500.0,0.00015052,2]
[351744903,1738774240901,-500.0,0.00015052,2]
[351744907,1738774240923,-502.19630505,0.00015052,2]
[351744909,1738774240934,-500.0,0.00015052,2]
[351744911,1738774240945,-500.0,0.00015052,2]
[351744913,1738774240956,-506.00447112,0.00015052,2]
[351744915,1738774240971,-1396.64,0.00015052,2]
[351744917,1738774240981,-500.0,0.00015052,2]
[351744919,1738774240991,-631.58,0.00015052,2]
[351744921,1738774241001,-504.98740706,0.00015052,2]
[351744923,1738774241011,-500.0,0.00015052,2]
[351744925,1738774241022,-501.15220094,0.00015052,2]
[351744927,1738774241032,-500.0,0.00015052,2]
[351744929,1738774241043,-500.0,0.00015052,2]
[351744931,1738774241053,-505.38848824,0.00015052,2]
[351744933,1738774241064,-500.4711566,0.00015052,2]
[351744935,1738774241074,-500.30604606,0.00015052,2]
[351744937,1738774241084,-500.0,0.00015052,2]
[351744939,1738774241094,-500.0,0.00015052,2]
[351744941,1738774241103,-500.0,0.00015052,2]
[351744943,1738774241113,-500.0,0.00015052,2]
[351744945,1738774241123,-500.0,0.00015052,2]
[351744947,1738774241134,-500.0,0.00015052,2]
[351744950,1738774241148,-500.0,0.00015052,2]
[351744952,1738774241157,-500.0,0.00015052,2]
[351744954,1738774241169,-500.0,0.00015052,2]
[351744956,1738774241179,-868.05,0.00015052,2]
[351744958,1738774241189,-500.0,0.00015052,2]
[351744960,1738774241199,-500.0,0.00015052,2]
[351744962,1738774241211,-501.57824832,0.00015052,2]
[351744964,1738774241222,-500.98027932,0.00015052,2]
[351744966,1738774241233,-500.0,0.00015052,2]
[351744968,1738774241243,-500.0,0.00015052,2]
[351744970,1738774241252,-500.0,0.00015052,2]
[351744972,1738774241262,-810.23,0.00015052,2]
[351744974,1738774241272,-500.0,0.00015052,2]
[351744976,1738774241282,-500.0,0.00015052,2]
[351744978,1738774241292,-500.0,0.00015052,2]
[351744980,1738774241301,-500.0,0.00015052,2]
[351744982,1738774241312,-500.0,0.00015052,2]
[351745000,1738774241519,-500.0,0.00015052,2]
[351745002,1738774241529,-500.0,0.00015052,2]
[351745004,1738774241539,-500.0,0.00015052,2]
[351745006,1738774241548,-500.0,0.00015052,2]
[351745008,1738774241558,-500.0,0.00015052,2]
[351745010,1738774241567,-500.0,0.00015052,2]
[351745011,1738774241577,-500.0,0.00015052,2]
[351745013,1738774241591,-500.0,0.00015052,2]
[351745015,1738774241600,-500.0,0.00015052,2]
[351745017,1738774241610,-485.95503907,0.00015052,2]
[351745019,1738774241619,-500.0,0.00015052,2]
[351745020,1738774241629,-500.0,0.00015052,2]
[351745022,1738774241639,-500.0,0.00015052,2]
[351745024,1738774241648,-500.0,0.00015052,2]
[351745026,1738774241657,-859.9,0.00015052,2]
[351745028,1738774241667,-500.0,0.00015052,2]
[351745030,1738774241677,-500.0,0.00015052,2]
[351745031,1738774241687,-500.0,0.00015052,2]
[351745033,1738774241696,-500.0,0.00015052,2]
[351745035,1738774241705,-500.0,0.00015052,2]
[351745037,1738774241718,-526.51,0.00015052,2]
[351745039,1738774241727,-1249.21,0.00015052,2]
[351745040,1738774241737,-500.0,0.00015052,2]
[351745042,1738774241747,-568.38,0.00015052,2]
[351745044,1738774241756,-500.0,0.00015052,2]
[351745046,1738774241766,-499.63457526,0.00015052,2]
[351745048,1738774241775,-746.1,0.00015052,2]
[351745050,1738774241785,-500.0,0.00015052,2]
[351745052,1738774241794,-500.0,0.00015052,2]
[351745053,1738774241804,-510.38444078,0.00015052,2]
[351745055,1738774241815,-500.0,0.00015052,2]
[351745057,1738774241824,-505.14936998,0.00015052,2]
[351745059,1738774241834,-500.0,0.00015052,2]
[351745061,1738774241844,-223.61797032,0.00015052,2]
[351745063,1738774241854,-500.0,0.00015052,2]
[351745065,1738774241864,-500.0,0.00015052,2]
[351745066,1738774241874,-500.0,0.00015052,2]
[351745068,1738774241883,-552.29,0.00015052,2]
[351745070,1738774241893,-500.0,0.00015052,2]
[351745072,1738774241903,-500.0,0.00015052,2]
[351745074,1738774241913,-500.0,0.00015052,2]
[351745076,1738774241922,-500.0,0.00015052,2]
[351745078,1738774241932,-500.0,0.00015052,2]
[351745080,1738774241941,-500.0,0.00015052,2]
[351745082,1738774241951,-1393.05,0.00015052,2]
[351745083,1738774241963,-500.0,0.00015052,2]
[351745085,1738774241973,-1295.41,0.00015052,2]
[351745087,1738774241983,-500.0,0.00015052,2]
[351745089,1738774241992,-720.86,0.00015052,2]
[351745091,1738774242002,-861.59,0.00015052,2]
[351745093,1738774242011,-500.0,0.00015052,2]
[351745095,1738774242022,-500.0,0.00015052,2]
[351745097,1738774242032,-500.0,0.00015052,2]
[351745098,1738774242042,-500.0,0.00015052,2]
[351745100,1738774242054,-912.41,0.00015052,2]
[351745102,1738774242068,-500.0,0.00015052,2]
[351745104,1738774242077,-500.0,0.00015052,2]
[351745106,1738774242086,-500.0,0.00015052,2]
[351745108,1738774242096,-761.03,0.00015052,2]
[351745110,1738774242105,-500.0,0.00015052,2]
[351745111,1738774242115,-446.62244191,0.00015052,2]
[351745114,1738774242130,-579.91,0.00015052,2]
[351745115,1738774242139,-500.0,0.00015052,2]
[351745117,1738774242150,-652.03,0.00015052,2]
[351745119,1738774242159,-1650.0,0.00015052,2]
[351745121,1738774242171,-2261.88,0.00015052,2]
[351745123,1738774242180,-500.0,0.00015052,2]
[351745125,1738774242190,-500.0,0.00015052,2]
[351745127,1738774242200,-501.44963769,0.00015052,2]
[351745129,1738774242213,-500.0,0.00015052,2]
[351745131,1738774242222,-500.0,0.00015052,2]
[351745133,1738774242231,-529.59,0.00015052,2]
[351745134,1738774242241,-500.0,0.00015052,2]
[351745136,1738774242252,-500.0,0.00015052,2]
[351745138,1738774242262,-500.0,0.00015052,2]
[351745140,1738774242272,-660.44,0.00015052,2]
[351745142,1738774242282,-500.0,0.00015052,2]
[351745144,1738774242292,-500.0,0.00015052,2]
[351745146,1738774242301,-500.0,0.00015052,2]
[351745148,1738774242311,-500.0,0.00015052,2]
[351745150,1738774242321,-613.56,0.00015052,2]
[351745153,1738774242331,-500.0,0.00015052,2]
[351745156,1738774242341,-500.0,0.00015052,2]
[351745158,1738774242351,-500.0,0.00015052,2]
[351745160,1738774242360,-500.0,0.00015052,2]
[351745162,1738774242370,-916.12,0.00015052,2]
[351745164,1738774242380,-1080.47,0.00015052,2]
[351745166,1738774242390,-1040.01,0.00015052,2]
[351745168,1738774242403,-500.0,0.00015052,2]
[351745170,1738774242413,-500.0,0.00015052,2]
[351745172,1738774242423,-502.59962938,0.00015052,2]
[351745174,1738774242434,-500.22088784,0.00015052,2]
[351745177,1738774242444,-827.88,0.00015052,2]
[351745180,1738774242454,-500.0,0.00015052,2]
[351745183,1738774242468,-544.53,0.00015052,2]
[351745186,1738774242479,-500.0,0.00015052,2]
[351745189,1738774242488,-500.0,0.00015052,2]
[351745192,1738774242498,-500.0,0.00015052,2]
[351745196,1738774242507,-500.0,0.00015052,2]
[351745199,1738774242516,-501.84635472,0.00015052,2]
[351745201,1738774242526,-500.0,0.00015052,2]
[351745203,1738774242536,-1943.26,0.00015052,2]
[351745205,1738774242545,-500.0,0.00015052,2]
[351745208,1738774242556,-1247.62,0.00015052,2]
[351745210,1738774242566,-664.16,0.00015052,2]
[351745211,1738774242576,-500.0,0.00015052,2]
[351745214,1738774242586,-188.0,0.00015052,2]
[351745216,1738774242596,-500.0,0.00015052,2]
[351745219,1738774242607,-500.0,0.00015052,2]
[351745223,1738774242617,-500.0,0.00015052,2]
[351745226,1738774242627,-500.0,0.00015052,2]
[351745228,1738774242637,-500.0,0.00015052,2]
[351745230,1738774242648,-500.54458456,0.00015052,2]
[351745231,1738774242659,-500.0,0.00015052,2]
[351745233,1738774242669,-500.0,0.00015052,2]
[351745235,1738774242679,-500.0,0.00015052,2]
[351745237,1738774242690,-500.0,0.00015052,2]
[351745239,1738774242700,-500.0,0.00015052,2]
[351745241,1738774242709,-500.0,0.00015052,2]
[351745243,1738774242724,-500.0,0.00015052,2]
[351745245,1738774242735,-592.54012417,0.00015052,2]
[351745246,1738774242745,-500.0,0.00015052,2]
[351745248,1738774242756,-1333.85,0.00015052,2]
[351745250,1738774242766,-500.0,0.00015052,2]
[351745252,1738774242776,-3827.64,0.00015052,2]
[351745254,1738774242786,-500.0,0.00015052,2]
[351745256,1738774242796,-500.0,0.00015052,2]
[351745258,1738774242807,-502.62023992,0.00015052,2]
[351745260,1738774242816,-500.0,0.00015052,2]
[351745262,1738774242826,-500.0,0.00015052,2]
[351745263,1738774242835,-500.0,0.00015052,2]
[351745265,1738774242845,-501.22673616,0.00015052,2]
[351745267,1738774242855,-500.0,0.00015052,2]
[351745269,1738774242865,-500.0,0.00015052,2]
[351745271,1738774242875,-500.0,0.00015052,2]
[351745273,1738774242885,-3848.54,0.00015052,2]
[351745275,1738774242894,-500.0,0.00015052,2]
[351745277,1738774242904,-500.0,0.00015052,2]
[351745279,1738774242914,-918.22,0.00015052,2]
[351745281,1738774242924,-178.0216987,0.00015052,2]
[351745282,1738774242934,-500.0,0.00015052,2]
[351745284,1738774242944,-1075.09,0.00015052,2]
[351745286,1738774242954,-510.63,0.00015052,2]
[351745288,1738774242969,-405.8795387,0.00015052,2]
[351745290,1738774242979,-300.0,0.00015052,2]
[351745292,1738774242990,-500.0,0.00015052,2]
[351745294,1738774243000,-500.0,0.00015052,2]
[351745296,1738774243010,-605.33,0.00015052,2]
[351745298,1738774243020,-500.0,0.00015052,2]
[351745299,1738774243031,-500.0,0.00015052,2]
[351745301,1738774243040,-500.0,0.00015052,2]
[351745303,1738774243050,-500.0,0.00015052,2]
[351745305,1738774243060,-500.0,0.00015052,2]
[351745307,1738774243070,-500.0,0.00015052,2]
[351745309,1738774243080,-500.0,0.00015052,2]
[351745311,1738774243089,-500.0,0.00015052,2]
[351745313,1738774243101,-500.0,0.00015052,2]
[351745314,1738774243111,-1075.49,0.00015052,2]
[351745316,1738774243120,-818.55,0.00015052,2]
[351745318,1738774243130,-500.0,0.00015052,2]
[351745320,1738774243143,-511.63,0.00015052,2]
[351745322,1738774243163,-1103.98,0.00015052,2]
[351745324,1738774243175,-500.0,0.00015052,2]
[351745326,1738774243184,-1094.31,0.00015052,2]
[351745328,1738774243195,-500.0,0.00015052,2]
[351745330,1738774243205,-500.0,0.00015052,2]
[351745332,1738774243218,-500.0,0.00015052,2]
[351745333,1738774243227,-301.81898632,0.00015052,2]
[351745335,1738774243236,-500.0,0.00015052,2]
[351745337,1738774243247,-500.0,0.00015052,2]
[351745339,1738774243258,-500.0,0.00015052,2]
[351745341,1738774243268,-500.0,0.00015052,2]
[351745343,1738774243279,-500.0,0.00015052,2]
[351745345,1738774243288,-500.0,0.00015052,2]
[351745347,1738774243298,-500.0,0.00015052,2]
[351745349,1738774243309,-500.0,0.00015052,2]
[351745350,1738774243319,-500.0,0.00015052,2]
[351745352,1738774243329,-500.0,0.00015052,2]
[351745354,1738774243338,-590.64,0.00015052,2]
[351745356,1738774243348,-500.0,0.00015052,2]
[351745358,1738774243358,-500.0,0.00015052,2]
[351745360,1738774243368,-500.0,0.00015052,2]
[351745362,1738774243378,-549.77759903,0.00015052,2]
[351745364,1738774243388,-514.93,0.00015052,2]
[351745366,1738774243398,-500.0,0.00015052,2]
[351745367,1738774243407,-794.49,0.00015052,2]
[351745369,1738774243418,-1289.94,0.00015052,2]
[351745371,1738774243427,-751.65,0.00015052,2]
[351745373,1738774243438,-645.81,0.00015052,2]
[351745375,1738774243449,-500.0,0.00015052,2]
[351745377,1738774243459,-500.0,0.00015052,2]
[351745379,1738774243472,-500.0,0.00015052,2]
[351745381,1738774243482,-500.0,0.00015052,2]
[351745383,1738774243492,-500.0,0.00015052,2]
[351745384,1738774243502,-500.0,0.00015052,2]
[351745386,1738774243512,-340.1928242,0.00015052,2]
[351745388,1738774243523,-500.0,0.00015052,2]
[351745390,1738774243535,-1871.97,0.00015052,2]
[351745392,1738774243545,-500.0,0.00015052,2]
[351745394,1738774243555,-513.03769392,0.00015052,2]
[351745396,1738774243565,-1665.0,0.00015052,2]
[351745398,1738774243576,-500.0,0.00015052,2]
[351745400,1738774243586,-500.0,0.00015052,2]
[351745402,1738774243596,-500.0,0.00015052,2]
[351745404,1738774243606,-647.08,0.00015052,2]
[351745405,1738774243615,-500.0,0.00015052,2]
[351745407,1738774243625,-613.63,0.00015052,2]
[351745409,1738774243636,-500.0,0.00015052,2]
[351745411,1738774243646,-1019.97,0.00015052,2]
[351745413,1738774243656,-1916.23,0.00015052,2]
[351745415,1738774243666,-500.0,0.00015052,2]
[351745417,1738774243675,-500.0,0.00015052,2]
[351745419,1738774243686,-584.07,0.00015052,2]
[351745421,1738774243696,-1023.08,0.00015052,2]
[351745423,1738774243707,-500.0,0.00015052,2]
[351745425,1738774243719,-1000.0,0.00015052,2]
[351745427,1738774243729,-500.0,0.00015052,2]
[351745429,1738774243740,-725.72,0.00015052,2]
[351745431,1738774243751,-500.0,0.00015052,2]
[351745433,1738774243761,-500.0,0.00015052,2]
[351745435,1738774243772,-500.0,0.00015052,2]
[351745437,1738774243782,-500.0,0.00015052,2]
[351745439,1738774243792,-500.0,0.00015052,2]
[351745441,1738774243802,-500.0,0.00015052,2]
[351745442,1738774243811,-514.99960741,0.00015052,2]
[351745444,1738774243821,-565.85,0.00015052,2]
[351745446,1738774243830,-500.0,0.00015052,2]
[351745448,1738774243840,-789.02,0.00015052,2]
[351745450,1738774243849,-500.0,0.00015052,2]
[351745452,1738774243859,-500.0,0.00015052,2]
[351745454,1738774243868,-500.0,0.00015052,2]
[351745456,1738774243878,-500.0,0.00015052,2]
[351745458,1738774243888,-3754.54,0.00015052,2]
[351745459,1738774243898,-500.0,0.00015052,2]
[351745461,1738774243908,-1209.47,0.00015052,2]
[351745463,1738774243917,-500.0,0.00015052,2]
[351745465,1738774243927,-500.0,0.00015052,2]
[351745467,1738774243937,-500.0,0.00015052,2]
[351745469,1738774243947,-500.0,0.00015052,2]
[351745471,1738774243957,-500.0,0.00015052,2]
[351745472,1738774243969,-500.0,0.00015052,2]
[351745473,1738774243979,-500.0,0.00015052,2]
[351745474,1738774243990,-505.44800151,0.00015052,2]
[351745475,1738774244000,-500.0,0.00015052,2]
[351745476,1738774244010,-500.0,0.00015052,2]
[351745477,1738774244020,-500.0,0.00015052,2]
[351745478,1738774244032,-500.0,0.00015052,2]
[351745479,1738774244042,-500.0,0.00015052,2]
[351745480,1738774244051,-500.0,0.00015052,2]
[351745481,1738774244061,-998.54,0.00015052,2]
[351745482,1738774244071,-505.16,0.00015052,2]
[351745483,1738774244081,-500.0,0.00015052,2]
[351745484,1738774244091,-500.0,0.00015052,2]
[351745485,1738774244101,-500.0,0.00015052,2]
[351745486,1738774244111,-500.0,0.00015052,2]
[351745487,1738774244122,-500.0,0.00015052,2]
[351745488,1738774244133,-500.0,0.00015052,2]
[351745489,1738774244146,-500.0,0.00015052,2]
[351745490,1738774244156,-438.22386094,0.00015052,2]
[351745491,1738774244167,-500.0,0.00015052,2]
[351745492,1738774244176,-500.0,0.00015052,2]
[351745493,1738774244186,-507.95164527,0.00015052,2]
[351745494,1738774244196,-500.0,0.00015052,2]
[351745495,1738774244205,-500.0,0.00015052,2]
[351745496,1738774244218,-500.0,0.00015052,2]
[351745497,1738774244228,-500.0,0.00015052,2]
[351745498,1738774244238,-500.0,0.00015052,2]
[351745499,1738774244248,-502.94517475,0.00015052,2]
[351745500,1738774244258,-1063.21,0.00015052,2]
[351745502,1738774244268,-321.82871719,0.00015052,2]
[351745504,1738774244278,-801.8,0.00015052,2]
[351745506,1738774244288,-500.0,0.00015052,2]
[351745508,1738774244297,-500.0,0.00015052,2]
[351745510,1738774244307,-500.0,0.00015052,2]
[351745512,1738774244317,-500.0,0.00015052,2]
[351745514,1738774244328,-500.0,0.00015052,2]
[351745516,1738774244338,-500.0,0.00015052,2]